{"text_format":"3","workbook":"xlsx","n_sheets":6,"sheets":["Лист1","Лист2","Лист3","Лист4","Лист5","Лист6"],"read":"whole","date_system":"1900"}

{"sheet":"Лист1","index":0,"n_rows":12,"n_cols":18,"rows_kept":12,"merged":[[0,0,0,16],[1,0,1,16],[2,0,2,16],[3,0,3,16],[4,0,4,17],[5,0,6,0],[5,1,6,1],[5,2,6,2],[5,3,6,3],[5,4,6,4],[5,5,5,7],[5,8,5,10],[5,11,5,13],[5,14,6,14],[5,15,6,15],[5,16,6,16],[5,17,6,17]]}
["ПЕРВЕНСТВО ГБУ ДО РЮСШ ПО КОННОМУ СПОРТУ ПО ВЫЕЗДКЕ  "]
["Технические результаты "]
[" Предварительный приз А. Дети ( любители)."]
["судьи: Ильянова Л.И. - С, Романова А.С. - В, Фокеева А - Н."]
["МКСК \"Казань                                                                                                                                                                                                                   8 илюя 2016 "]
["Место","Фамилия, Имя всадника","Г. р.","Звание, разряд","Кличка лошади, г.р., масть, пол, порода, отец, место рождения","Н",null,null,"С",null,null,"В",null,null,"Кол. ошиб.","Всего баллов","Всего %","Вып.норм"]
[{"$nulls":5},"балл","%","место","балл","%","место","балл","%","место"]
[1,"Яковлева Полина ",1992,null,"Дамаска1998, вороная кобыла, кабардинской п.,ТатарстанДомаска",166,{"$f":"F8/2.6","v":63.84615384615385},1,176,{"$f":"I8/2.6","v":67.6923076923077},1,173,{"$f":"L8/2.6","v":66.53846153846153},1,0,{"$f":"L8+I8+L8","v":522},{"$f":"(P8/3)/2.6","v":66.92307692307692}]
[2,"Джапасбатова Дина",2001,null,"Заказ 1999 вороной жеребец,русской рысистой, Талисман,СПК Архангельский",163,{"$f":"F9/2.6","v":62.69230769230769},2,159,{"$f":"I9/2.6","v":61.15384615384615},2,165.5,{"$f":"L9/2.6","v":63.65384615384615},2,0,{"$f":"L9+I9+L9","v":490},{"$f":"(P9/3)/2.6","v":62.820512820512825},"2 юн"]
[]
[null,"Главный судья:                                                      Ипатова Г.В.",null,null,"Ильянова Л.И."]
[null,"Главный секретарь:                                               Коршунова Г.А.",null,null,"Турцива Ю.Н"]

{"sheet":"Лист2","index":1,"n_rows":11,"n_cols":18,"rows_kept":11,"merged":[[0,0,0,17],[1,0,1,17],[2,0,2,17],[3,0,3,17],[4,0,4,17],[5,0,6,0],[5,1,6,1],[5,2,6,2],[5,3,6,3],[5,4,6,4],[5,5,5,7],[5,8,5,10],[5,11,5,13],[5,14,6,14],[5,15,6,15],[5,16,6,16],[5,17,6,17]]}
["ПЕРВЕНСТВО ГБУ ДО РЮСШ ПО КОННОМУ СПОРТУ ПО ВЫЕЗДКЕ  "]
["Технические результаты "]
[" Предварительный приз.Юноши."]
["судьи: Ильянова Л.И. - С, Романова А.С. - В, Фокеева А - Н."]
["МКСК \"Казань                                                                                                                                                                                                                   8 илюя 2016 "]
["место","Фамилия имя всадника ","г.р","Звание, разряд","Кличка лошади, г.р., масть, пол, порода, отец, место рождения","В",null,null,"С",null,null,"Н",null,null,"Кол. ошиб.","Всего баллов","Всего %","Вып.норм"]
[{"$nulls":5},"балл","%","место","балл","%","место","балл","%","место"]
[1,"Хватков Роман ",2001,2,"Диаманта 2005, рыжая кобыла, латвийской п., Торнадо, Кировская область",213.5,{"$f":"F8/3.4","v":62.794117647058826},{"$f":"RANK(G8,G$8:G$9,0)","v":1},219.5,{"$f":"I8/3.4","v":64.55882352941177},{"$f":"RANK(J8,J$8:J$9,0)","v":1},211,{"$f":"L8/3.4","v":62.05882352941177},{"$f":"RANK(M8,M$8:M$9,0)","v":1},0,{"$f":"F8+I8+L8","v":644},{"$f":"(P8/3)/3.4","v":63.13725490196078},2]
[2,"Магрифатуллина Аделина",1998,"КМС","Бэлфаер2008 караковый мерин, русской верховой п., 54Барон-167Интерия, Россия, К/З «Отрада»",210.5,{"$f":"F9/3.4","v":61.911764705882355},{"$f":"RANK(G9,G$8:G$9,0)","v":2},206.5,{"$f":"I9/3.4","v":60.73529411764706},{"$f":"RANK(J9,J$8:J$9,0)","v":2},211,{"$f":"L9/3.4","v":62.05882352941177},{"$f":"RANK(M9,M$8:M$9,0)","v":1},0,{"$f":"F9+I9+L9","v":628},{"$f":"(P9/3)/3.4","v":61.568627450980394},3]
[null,"Главный судья:                                                      Ипатова Г.В.",null,null,"Ильянова Л.И."]
[null,"Главный секретарь:                                               Коршунова Г.А.",null,null,"Турцива Ю.Н"]

{"sheet":"Лист3","index":2,"n_rows":15,"n_cols":8,"rows_kept":15,"merged":[[0,0,0,7],[1,0,1,7],[2,0,2,7],[4,0,4,7],[5,0,6,0],[5,1,6,1],[5,2,6,2],[5,3,6,3],[5,4,6,4],[5,5,5,6],[5,7,6,7],[11,5,11,6],[12,5,12,6],[13,1,13,2],[14,1,14,2]]}
["ПЕРВЕНСТВО ГБУ ДО РЮСШ ПО КОННОМУ СПОРТУ ПО КОНКУРУ  "]
["Технические результаты "]
["Маршрут №3, 100 дети "]
[]
["МКСК г. Казань                                                    8 июля 2016г"]
["место","Фамилия, Имя всадника","звание, разрядов","Кличка лошади, г.р., масть, пол, порода, отец, место рождения","Команда, регион","Маршрут",null,"Вып.норм"]
[{"$nulls":5},"ш.о","время "]
[1,"Ахметзянова Камиля",null,"Илизар 1999,рыж., мерин, буденовской п.","ГБУ ДО РДЮСШ по конному спорту МДМСиТ РТ",0,"80,57",3]
[2,"Ахметзянова Камиля",null,"Дукат 2007,рыжий жеребец, латвийской п.","ГБУ ДО РДЮСШ по конному спорту МДМСиТ РТ",4,84.96,"1 юн"]
[3,"Мухарямов Нияз ",null,"Озимь 2005, темн.гнедая кобыла, тракененской п.","ГБУ ДО РДЮСШ по конному спорту МДМСиТ РТ",8,96.18]
[4,"Хапугина Виктория  ",null,"Лига 2002, гнедая кобылла, голштинской п.","ГБУ ДО РДЮСШ по конному спорту МДМСиТ РТ",8,105.53]
[5,"Хапугина Виктория  ",null,"Плагиат 2004, гнедой жеребец, тракененской п.","ГБУ ДО РДЮСШ по конному спорту МДМСиТ РТ","снят"]
[6,"Ибрагимова Сабина ",null,"Купава 2005, рыжая кобыла, анго-арабскойп.","ГБУ ДО РДЮСШ по конному спорту МДМСиТ РТ","снят"]
[null,"Главный судья",null,null,"Насыбуллина А.Р."]
[null,"Главный секретарь ",null,null,"Турцева Ю.Н."]

{"sheet":"Лист4","index":3,"n_rows":19,"n_cols":8,"rows_kept":19,"merged":[[0,0,0,7],[1,0,1,7],[2,0,2,7],[3,0,3,5],[4,0,4,7],[5,0,6,0],[5,1,6,1],[5,2,6,2],[5,3,6,3],[5,4,6,4],[5,5,5,6],[5,7,6,7],[11,5,11,6],[12,5,12,6],[13,5,13,6],[14,5,14,6],[15,5,15,6],[16,5,16,6],[17,1,17,2],[18,1,18,2]]}
["ПЕРВЕНСТВО ГБУ ДО РЮСШ ПО КОННОМУ СПОРТУ ПО КОНКУРУ  "]
["Технические результаты "]
["Маршрут №3, 100 любители "]
[]
["МКСК г. Казань                                                                             8 июля 2016г"]
["место","Фамилия, Имя всадника","звание, разрядов","Кличка лошади, г.р., масть, пол, порода, отец, место рождения","Команда, регион","Маршрут",null,"Вып.норм"]
[{"$nulls":5},"ш.о","время "]
[1,"Соколова Алина ","б\\р","Илизар 1999,рыж., мерин, буденовской п.","ГБУ ДО РДЮСШ по конному спорту МДМСиТ РТ",0,"75,25",3]
[2,"Сидорова Анастасия ","б\\р","Афродита2010, рыжая кобыла,Донской п.","Ч/В",0,113.43,3]
[3,"Диянова Мария ","б\\р","Любезна ","КСК Пристиж",4,93.06,"1 юн"]
[4,"Краснобаева Ольга ","б\\р","Барка","КСК Пристиж",12,84.11]
[5,"Сабирова Динара ","б\\р","Диапазон 2006, гнедой жеребец, русской рысистой п.","Ч/В","снят"]
[6,"Никонорова Оксана ","б\\р","Размах2009, рыжий мерин, русской рысистой п.","Ч/В","снят"]
[7,"Фазулзянова Аделина ","б\\р","Афродита2010, рыжая кобыла,Донской п.","Ч/В","снят"]
[8,"Сидорова Анастасия ","б\\р","Вайхона2010, рыжая кобыла,тракененской п.","Ч/В","снят"]
[9,"Соколова Алина ","б\\р","Плагиат 2004, гнедой жеребец, тракененской п.","ГБУ ДО РДЮСШ по конному спорту МДМСиТ РТ","снят"]
[10,"Николаева Анастасия ","б\\р","Любезна ","КСК Пристиж","снят"]
[null,"Главный судья",null,null,"Насыбуллина А.Р."]
[null,"Главный секретарь ",null,null,"Турцева Ю.Н."]

{"sheet":"Лист5","index":4,"n_rows":14,"n_cols":8,"rows_kept":14,"merged":[[0,0,0,7],[1,0,1,7],[2,0,2,7],[3,0,3,7],[4,0,4,7],[5,0,6,0],[5,1,6,1],[5,2,6,2],[5,3,6,3],[5,4,6,4],[5,5,5,6],[5,7,6,7],[12,1,12,2],[13,1,13,2]]}
["ПЕРВЕНСТВО ГБУ ДО РЮСШ ПО КОННОМУ СПОРТУ ПО КОНКУРУ  "]
["Технические результаты "]
["Маршрут №3, 100 молодые лошади"]
[]
["МКСК г. Казань                                                                                           8 июля 2016г"]
["место","Фамилия, Имя всадника","звание, разрядов","Кличка лошади, г.р., масть, пол, порода, отец, место рождения","Команда, регион","Маршрут",null,"Вып.норм"]
[{"$nulls":5},"ш.о","время "]
[1,"Бадрутинова Эльза ",2,"Скипер2012 гнедой жеребец, ганноверской п.","ГБУ ДО РДЮСШ по конному спорту МДМСиТ РТ",4,117.4,"1 юн."]
[2,"Пантелеева Ирина ","б\\р","Бэлла","КСК Пристиж",8,"81,00"]
[3,"Галиулин Васим ","б\\р","Флайбот","КСК Пристиж",8,87.62]
[4,"Нарзяева Наталия ","б/р","Хольтея2011, рыжая кобыла, тракененской п.","ГБУ ДО РДЮСШ по конному спорту МДМСиТ РТ",12,102.26]
[]
[null,"Главный судья",null,null,"Насыбуллина А.Р."]
[null,"Главный секретарь ",null,null,"Турцева Ю.Н."]

{"sheet":"Лист6","index":5,"n_rows":14,"n_cols":8,"rows_kept":14,"merged":[[0,0,0,6],[1,0,1,6],[2,0,2,6],[4,0,4,6],[5,0,6,0],[5,1,6,1],[5,2,6,2],[5,3,6,3],[5,4,6,4],[5,5,5,6],[5,7,6,7],[10,5,10,6],[11,7,12,7],[13,1,13,2]]}
["ПЕРВЕНСТВО ГБУ ДО РЮСШ ПО КОННОМУ СПОРТУ ПО КОНКУРУ  "]
["Технические результаты "]
["Маршрут №2, 110 общий зачет "]
[]
["МКСК г. Казань                                                                                                  8 июля 2016г"]
["место","Фамилия, Имя всадника","звание, разрядов","Кличка лошади, г.р., масть, пол, порода, отец, место рождения","Команда, регион","Маршрут",null,"Вып.норм"]
[{"$nulls":5},"ш.о","время "]
[1,"Бадрутинова Эльза ",2,"Кентаки 2010, рыжая кобыла,голштинской п.","ГБУ ДО РДЮСШ по конному спорту МДМСиТ РТ",8,103.4]
[2,"Валиуллина Диана ","1 юн","Озимь 2005, темн.гнедая кобыла, тракененской п.","ГБУ ДО РДЮСШ по конному спорту МДМСиТ РТ",16,120.74]
[3,"Ибрагимова Сабина ",3,"Фолиант 2007, рыжий жеребец, латвийской п.","ГБУ ДО РДЮСШ по конному спорту МДМСиТ РТ",24,85.52]
[5,"Шайхиев Айрат ","б\\р","Октавианка 2010 вороная, кобыла, ганноверская п.","ГБУ ДО РДЮСШ по конному спорту МДМСиТ РТ","снят"]
[]
[null,"Главный судья",null,null,"Насыбуллина А.Р."]
[null,"Главный секретарь ",null,null,"Турцева Ю.Н."]